[Event "*** SCC Grand Prix: Titled Tuesday Blitz"]
[Site "Chess.com"]
[Date "2020.07.07"]
[Round "3"]
[White "GregShahade"]
[Black "FabianoCaruana"]
[Result "0-1"]
[WhiteElo "2674"]
[BlackElo "2975"]
[TimeControl "180+1"]
[EndTime "10:29:00 PDT"]
[Termination "FabianoCaruana won by resignation"]

1. e4 {[%clk 0:03:00.9]} 1... e5 {[%clk 0:02:59.9]} 2. Nf3 {[%clk 0:03:00.7]}
2... Nc6 {[%clk 0:03:00.6]} 3. Bb5 {[%clk 0:03:00.9]} 3... a6 {[%clk 0:03:00.3]}
4. Ba4 {[%clk 0:03:01.2]} 4... Nf6 {[%clk 0:03:00.1]} 5. O-O {[%clk 0:03:00.8]}
5... Bc5 {[%clk 0:02:59.9]} 6. c3 {[%clk 0:02:48.1]} 6... b5 {[%clk 0:02:59.5]}
7. Bc2 {[%clk 0:02:47.6]} 7... d5 {[%clk 0:02:59.7]} 8. d3 {[%clk 0:02:40.1]}
8... h6 {[%clk 0:02:55.7]} 9. Nbd2 {[%clk 0:02:36.8]} 9... O-O {[%clk
0:02:55.1]} 10. a4 {[%clk 0:02:37.2]} 10... b4 {[%clk 0:02:52.6]} 11. a5 {[%clk
0:02:31.8]} 11... Bg4 {[%clk 0:02:49.7]} 12. Re1 {[%clk 0:02:10.9]} 12... Rb8
{[%clk 0:02:44.1]} 13. h3 {[%clk 0:02:07.3]} 13... Bh5 {[%clk 0:02:42.9]} 14.
Qe2 {[%clk 0:02:05.6]} 14... bxc3 {[%clk 0:02:39.1]} 15. bxc3 {[%clk 0:02:05.4]}
15... d4 {[%clk 0:02:39.5]} 16. Nb3 {[%clk 0:01:38.5]} 16... Rxb3 {[%clk
0:02:36.4]} 17. Bxb3 {[%clk 0:01:37.5]} 17... dxc3 {[%clk 0:02:33.9]} 18. g4
{[%clk 0:01:36]} 18... Nxg4 {[%clk 0:02:33.7]} 19. hxg4 {[%clk 0:01:29.6]} 19...
Bxg4 {[%clk 0:02:34.6]} 20. Be3 {[%clk 0:01:26.5]} 20... Nd4 {[%clk 0:02:14.1]}
21. Bxd4 {[%clk 0:01:24.7]} 21... Bxd4 {[%clk 0:02:14.1]} 22. Kg2 {[%clk
0:01:18.5]} 22... Qd6 {[%clk 0:02:03.6]} 23. Ra4 {[%clk 0:01:07.1]} 23... Rb8
{[%clk 0:01:57.5]} 24. Bd1 {[%clk 0:01:03.7]} 24... Rb2 {[%clk 0:01:55.5]} 25.
Qf1 {[%clk 0:00:57]} 25... Bxf3+ {[%clk 0:01:42.2]} 26. Bxf3 {[%clk 0:00:53.8]}
26... Qf6 {[%clk 0:01:27.4]} 27. Re2 {[%clk 0:00:48.7]} 27... Qg5+ {[%clk
0:01:25]} 28. Kh3 {[%clk 0:00:37.5]} 28... c2 {[%clk 0:01:24.7]} 29. Rc4 {[%clk
0:00:34.6]} 29... Rb1 {[%clk 0:01:24.7]} 30. Re1 {[%clk 0:00:32.4]} 30... Qf4
{[%clk 0:01:13.4]} 31. Kg2 {[%clk 0:00:29.6]} 31... Qd2 {[%clk 0:01:09.9]} 32.
Rxc2 {[%clk 0:00:23.1]} 32... Qxe1 {[%clk 0:01:08.2]} 33. Qxe1 {[%clk
0:00:22.4]} 33... Rxe1 {[%clk 0:01:08.4]} 34. Rc6 {[%clk 0:00:18.7]} 34... Ra1
{[%clk 0:01:07.8]} 35. Rxa6 {[%clk 0:00:18.4]} 35... Ra2 {[%clk 0:01:05]} 36.
Ra8+ {[%clk 0:00:15.7]} 36... Kh7 {[%clk 0:01:05.3]} 37. a6 {[%clk 0:00:16.4]}
37... Rxf2+ {[%clk 0:01:04.1]} 38. Kg3 {[%clk 0:00:17.1]} 38... Ra2 {[%clk
0:01:00]} 39. Bd1 {[%clk 0:00:16.6]} 39... Ra3 {[%clk 0:00:57.7]} 40. Bc2 {[%clk
0:00:11.5]} 40... g6 {[%clk 0:00:57.6]} 41. Rc8 {[%clk 0:00:08.1]} 41... Rxa6
{[%clk 0:00:55.7]} 42. Rxc7 {[%clk 0:00:08.8]} 42... Kg7 {[%clk 0:00:55.5]} 43.
Bb3 {[%clk 0:00:08.9]} 43... Rf6 {[%clk 0:00:56.1]} 44. Bc4 {[%clk 0:00:09.1]}
44... h5 {[%clk 0:00:56]} 45. Rd7 {[%clk 0:00:08.9]} 45... g5 {[%clk 0:00:54.8]}
46. Rb7 {[%clk 0:00:08.7]} 46... Rf4 {[%clk 0:00:54.5]} 47. Rd7 {[%clk
0:00:08.6]} 47... h4+ {[%clk 0:00:54.7]} 48. Kh3 {[%clk 0:00:09]} 48... Bf2
{[%clk 0:00:54.7]} 49. Re7 {[%clk 0:00:08.5]} 49... g4+ {[%clk 0:00:54.3]} 50.
Kg2 {[%clk 0:00:08.9]} 50... h3+ {[%clk 0:00:54.8]} 51. Kh2 {[%clk 0:00:09.3]}
51... Rf3 {[%clk 0:00:49.5]} 52. Rxe5 {[%clk 0:00:08.5]} 52... Bg3+ {[%clk
0:00:49.1]} 53. Kg1 {[%clk 0:00:09]} 53... Bxe5 {[%clk 0:00:50]} 0-1

[Event "*** SCC Grand Prix: Titled Tuesday Blitz"]
[Site "Chess.com"]
[Date "2020.07.07"]
[Round "3"]
[White "fighter2jz"]
[Black "GothamChess"]
[Result "1-0"]
[WhiteElo "2797"]
[BlackElo "2576"]
[TimeControl "180+1"]
[EndTime "10:29:01 PDT"]
[Termination "fighter2jz won on time"]

1. e4 {[%clk 0:03:00.1]} 1... c6 {[%clk 0:03:00.3]} 2. d4 {[%clk 0:02:59]} 2...
d5 {[%clk 0:03:01.2]} 3. e5 {[%clk 0:02:58.7]} 3... Bf5 {[%clk 0:02:59.2]} 4.
Nc3 {[%clk 0:02:58.3]} 4... e6 {[%clk 0:02:59.3]} 5. g4 {[%clk 0:02:58.3]} 5...
Bg6 {[%clk 0:02:59.7]} 6. Nge2 {[%clk 0:02:58.1]} 6... c5 {[%clk 0:02:53.2]} 7.
Be3 {[%clk 0:02:48.7]} 7... Nc6 {[%clk 0:02:51.2]} 8. f4 {[%clk 0:02:44.5]} 8...
Qh4+ {[%clk 0:02:34]} 9. Ng3 {[%clk 0:02:37.6]} 9... cxd4 {[%clk 0:02:33.7]} 10.
Bxd4 {[%clk 0:02:37.3]} 10... a6 {[%clk 0:01:59.3]} 11. Bf2 {[%clk 0:02:28.9]}
11... h5 {[%clk 0:01:43.3]} 12. gxh5 {[%clk 0:01:33.1]} 12... Bxh5 {[%clk
0:01:40.1]} 13. Nxh5 {[%clk 0:01:27.2]} 13... Qxh5 {[%clk 0:01:39.7]} 14. Be2
{[%clk 0:01:27.4]} 14... Qf5 {[%clk 0:01:34.3]} 15. Qd2 {[%clk 0:01:24.8]} 15...
d4 {[%clk 0:01:28]} 16. O-O-O {[%clk 0:01:20.5]} 16... O-O-O {[%clk 0:01:28]}
17. Na4 {[%clk 0:01:12.7]} 17... Bb4 {[%clk 0:01:14.9]} 18. c3 {[%clk
0:01:04.6]} 18... dxc3 {[%clk 0:01:06.7]} 19. Nb6+ {[%clk 0:01:03.4]} 19... Kc7
{[%clk 0:00:33.9]} 20. Na8+ {[%clk 0:00:43.2]} 20... Kc8 {[%clk 0:00:21.2]} 21.
Nb6+ {[%clk 0:00:41.4]} 21... Kc7 {[%clk 0:00:21.1]} 22. Qxd8+ {[%clk 0:00:26]}
22... Nxd8 {[%clk 0:00:21]} 23. Rd7+ {[%clk 0:00:26.2]} 23... Kc6 {[%clk
0:00:20.3]} 24. Bf3+ {[%clk 0:00:26.6]} 24... Kb5 {[%clk 0:00:19.3]} 25. a4+
{[%clk 0:00:26.5]} 25... Ka5 {[%clk 0:00:17]} 26. Nc4+ {[%clk 0:00:17.1]} 26...
Kxa4 {[%clk 0:00:16.9]} 27. Rd4 {[%clk 0:00:13.9]} 27... cxb2+ {[%clk
0:00:06.2]} 28. Kxb2 {[%clk 0:00:13.3]} 28... Nc6 {[%clk 0:00:02.3]} 29. Nd6
{[%clk 0:00:09.5]} 29... Ka5 {[%clk 0:00:01.4]} 30. Ra1+ {[%clk 0:00:09]} 1-0

[Event "*** SCC Grand Prix: Titled Tuesday Blitz"]
[Site "Chess.com"]
[Date "2020.07.07"]
[Round "3"]
[White "Isajevsky_Anton"]
[Black "Gordima"]
[Result "1-0"]
[WhiteElo "2536"]
[BlackElo "2733"]
[TimeControl "180+1"]
[EndTime "10:29:01 PDT"]
[Termination "Isajevsky_Anton won on time"]

1. c4 {[%clk 0:02:50.2]} 1... e6 {[%clk 0:02:59.4]} 2. Nf3 {[%clk 0:02:49.4]}
2... d5 {[%clk 0:02:59.2]} 3. e3 {[%clk 0:02:49.8]} 3... Nf6 {[%clk 0:02:58.6]}
4. Nc3 {[%clk 0:02:49.5]} 4... c5 {[%clk 0:02:58.8]} 5. cxd5 {[%clk 0:02:47.8]}
5... exd5 {[%clk 0:02:59.7]} 6. d4 {[%clk 0:02:47.4]} 6... a6 {[%clk 0:03:00.2]}
7. b3 {[%clk 0:02:40.6]} 7... Nc6 {[%clk 0:02:53.8]} 8. Bb2 {[%clk 0:02:39.7]}
8... Bd6 {[%clk 0:02:49.1]} 9. dxc5 {[%clk 0:02:39.1]} 9... Bxc5 {[%clk
0:02:49.4]} 10. Be2 {[%clk 0:02:39.5]} 10... O-O {[%clk 0:02:48.9]} 11. O-O
{[%clk 0:02:38.9]} 11... Bg4 {[%clk 0:02:43.4]} 12. Nd4 {[%clk 0:02:30.7]} 12...
Bxd4 {[%clk 0:02:42.9]} 13. Bxg4 {[%clk 0:02:29.7]} 13... Be5 {[%clk 0:02:39.7]}
14. Bf3 {[%clk 0:02:28.7]} 14... Qd6 {[%clk 0:02:37.9]} 15. g3 {[%clk
0:02:28.7]} 15... Rad8 {[%clk 0:02:34.5]} 16. Bg2 {[%clk 0:02:03.8]} 16... Qb4
{[%clk 0:02:21.3]} 17. a3 {[%clk 0:01:46.7]} 17... Qb6 {[%clk 0:01:34]} 18. Na4
{[%clk 0:01:44.2]} 18... Qc7 {[%clk 0:01:34.1]} 19. Bxe5 {[%clk 0:01:40.4]}
19... Qxe5 {[%clk 0:01:35]} 20. Nc5 {[%clk 0:01:36.4]} 20... Qe7 {[%clk
0:00:55.3]} 21. Rc1 {[%clk 0:01:29.3]} 21... d4 {[%clk 0:00:49]} 22. exd4 {[%clk
0:01:28.8]} 22... Nxd4 {[%clk 0:00:48]} 23. Re1 {[%clk 0:01:28.6]} 23... Ne6
{[%clk 0:00:25.4]} 24. Qe2 {[%clk 0:01:16.5]} 24... Rfe8 {[%clk 0:00:17.4]} 25.
Nxb7 {[%clk 0:01:04.9]} 25... Rb8 {[%clk 0:00:17.1]} 26. Qxa6 {[%clk 0:01:04.4]}
26... Ra8 {[%clk 0:00:11.7]} 27. Qd6 {[%clk 0:00:56.3]} 27... Rxa3 {[%clk
0:00:04.5]} 28. Qxe7 {[%clk 0:00:30.7]} 28... Rxe7 {[%clk 0:00:05.4]} 29. Nc5
{[%clk 0:00:30.5]} 29... h5 {[%clk 0:00:02.5]} 30. Bh3 {[%clk 0:00:22.9]} 30...
Ng4 {[%clk 0:00:02.2]} 31. f3 {[%clk 0:00:22.6]} 31... Nf6 {[%clk 0:00:01.9]}
32. Nxe6 {[%clk 0:00:20.7]} 32... fxe6 {[%clk 0:00:02.8]} 33. Bxe6+ {[%clk
0:00:20]} 33... Kh8 {[%clk 0:00:01.7]} 34. Bc4 {[%clk 0:00:20.9]} 34... Re2
{[%clk 0:00:01.6]} 35. Rxe2 {[%clk 0:00:20.9]} 1-0

[Event "*** SCC Grand Prix: Titled Tuesday Blitz"]
[Site "Chess.com"]
[Date "2020.07.07"]
[Round "3"]
[White "BillieKimbah"]
[Black "Zhani-Z"]
[Result "1-0"]
[WhiteElo "2880"]
[BlackElo "2455"]
[TimeControl "180+1"]
[EndTime "10:29:01 PDT"]
[Termination "BillieKimbah won on time"]

1. Nf3 {[%clk 0:02:59.1]} 1... Nf6 {[%clk 0:02:58.8]} 2. g3 {[%clk 0:02:59.1]}
2... d5 {[%clk 0:02:58.8]} 3. Bg2 {[%clk 0:03:00]} 3... c6 {[%clk 0:02:59]} 4.
c4 {[%clk 0:02:59.4]} 4... dxc4 {[%clk 0:02:57.6]} 5. O-O {[%clk 0:02:59.3]}
5... Nbd7 {[%clk 0:02:54.7]} 6. Qc2 {[%clk 0:02:59.1]} 6... Nb6 {[%clk
0:02:54.3]} 7. a4 {[%clk 0:02:56.7]} 7... a5 {[%clk 0:02:45.4]} 8. Na3 {[%clk
0:02:56.8]} 8... Be6 {[%clk 0:02:42.4]} 9. Ng5 {[%clk 0:02:52.3]} 9... Bg4
{[%clk 0:02:42.4]} 10. Nxc4 {[%clk 0:02:50.6]} 10... Bxe2 {[%clk 0:02:32.6]} 11.
Ne5 {[%clk 0:02:49.4]} 11... Bh5 {[%clk 0:02:26.8]} 12. Re1 {[%clk 0:02:49.5]}
12... h6 {[%clk 0:02:21.7]} 13. Ne4 {[%clk 0:02:38]} 13... e6 {[%clk 0:01:58.4]}
14. Nxf6+ {[%clk 0:02:34.9]} 14... gxf6 {[%clk 0:01:57.3]} 15. Bxc6+ {[%clk
0:02:25.8]} 15... bxc6 {[%clk 0:01:50.6]} 16. Qxc6+ {[%clk 0:02:24.5]} 16... Ke7
{[%clk 0:01:44.2]} 17. Qb7+ {[%clk 0:02:19.1]} 17... Ke8 {[%clk 0:01:43.8]} 18.
Qc6+ {[%clk 0:02:06.7]} 18... Ke7 {[%clk 0:01:43.4]} 19. Qc5+ {[%clk 0:01:55.6]}
19... Qd6 {[%clk 0:01:06]} 20. Nc6+ {[%clk 0:01:54.3]} 20... Kd7 {[%clk
0:01:05.8]} 21. Qxh5 {[%clk 0:01:48.3]} 21... Qxc6 {[%clk 0:01:05.3]} 22. b4
{[%clk 0:01:21.3]} 22... axb4 {[%clk 0:00:58.6]} 23. Bb2 {[%clk 0:01:18.3]}
23... Be7 {[%clk 0:00:36.8]} 24. Qxf7 {[%clk 0:00:58.9]} 24... Raf8 {[%clk
0:00:33.7]} 25. Qh5 {[%clk 0:00:58.9]} 25... Nd5 {[%clk 0:00:15.1]} 26. Rac1
{[%clk 0:00:57]} 26... Qa6 {[%clk 0:00:14.9]} 27. Re4 {[%clk 0:00:42.4]} 27...
Rhg8 {[%clk 0:00:07.6]} 28. Rce1 {[%clk 0:00:42]} 28... f5 {[%clk 0:00:06]} 29.
Rxe6 {[%clk 0:00:35.9]} 29... Qxe6 {[%clk 0:00:05.7]} 30. Rxe6 {[%clk
0:00:36.8]} 30... Kxe6 {[%clk 0:00:06.4]} 31. Qe2+ {[%clk 0:00:37.1]} 31... Kd6
{[%clk 0:00:03.5]} 32. Qe5+ {[%clk 0:00:25.2]} 32... Kc6 {[%clk 0:00:03]} 33.
Qe6+ {[%clk 0:00:24.4]} 33... Bd6 {[%clk 0:00:03.2]} 34. Be5 {[%clk 0:00:24.7]}
1-0

[Event "*** SCC Grand Prix: Titled Tuesday Blitz"]
[Site "Chess.com"]
[Date "2020.07.07"]
[Round "3"]
[White "Forantes"]
[Black "LawrenceTrent"]
[Result "1-0"]
[WhiteElo "2339"]
[BlackElo "2509"]
[TimeControl "180+1"]
[EndTime "10:29:02 PDT"]
[Termination "Forantes won by resignation"]

1. Nf3 {[%clk 0:03:00.9]} 1... d5 {[%clk 0:02:59.3]} 2. g3 {[%clk 0:03:01]} 2...
Nc6 {[%clk 0:02:59]} 3. d4 {[%clk 0:03:00.5]} 3... Bf5 {[%clk 0:02:58.8]} 4. Bg2
{[%clk 0:03:00.9]} 4... e6 {[%clk 0:02:56.1]} 5. O-O {[%clk 0:03:01.3]} 5... h5
{[%clk 0:02:56]} 6. h4 {[%clk 0:03:00.1]} 6... Nf6 {[%clk 0:02:51.8]} 7. c4
{[%clk 0:03:00.6]} 7... Be7 {[%clk 0:02:43.6]} 8. Nc3 {[%clk 0:03:00.7]} 8...
Ne4 {[%clk 0:02:42.8]} 9. Qb3 {[%clk 0:02:24.3]} 9... Na5 {[%clk 0:02:38.1]} 10.
Qa4+ {[%clk 0:02:24.4]} 10... c6 {[%clk 0:02:23.8]} 11. cxd5 {[%clk 0:02:24.1]}
11... Nxc3 {[%clk 0:02:13.3]} 12. bxc3 {[%clk 0:02:22.9]} 12... exd5 {[%clk
0:02:13.6]} 13. Ne5 {[%clk 0:02:12.2]} 13... f6 {[%clk 0:02:00.6]} 14. Nd3
{[%clk 0:02:11.5]} 14... Nc4 {[%clk 0:01:50.1]} 15. Rb1 {[%clk 0:02:07.7]} 15...
Qd7 {[%clk 0:01:41.1]} 16. e4 {[%clk 0:01:33.1]} 16... b5 {[%clk 0:01:30.7]} 17.
Qa6 {[%clk 0:01:11.8]} 17... Bxe4 {[%clk 0:01:20.2]} 18. Bxe4 {[%clk 0:01:10.9]}
18... dxe4 {[%clk 0:01:21.1]} 19. Nf4 {[%clk 0:00:50.4]} 19... Rh7 {[%clk
0:01:07.8]} 20. d5 {[%clk 0:00:48.7]} 20... Ne5 {[%clk 0:00:46.3]} 21. dxc6
{[%clk 0:00:41.8]} 21... Qxc6 {[%clk 0:00:41.3]} 22. Qxc6+ {[%clk 0:00:33.5]}
22... Nxc6 {[%clk 0:00:42.2]} 23. Rxb5 {[%clk 0:00:33.7]} 23... Ne5 {[%clk
0:00:39]} 24. Be3 {[%clk 0:00:27.8]} 24... Kf7 {[%clk 0:00:38.7]} 25. Rb7 {[%clk
0:00:26.3]} 25... g5 {[%clk 0:00:37.5]} 26. Nd5 {[%clk 0:00:26]} 26... Re8
{[%clk 0:00:28.8]} 27. hxg5 {[%clk 0:00:18.4]} 27... h4 {[%clk 0:00:25.1]} 28.
gxf6 {[%clk 0:00:17]} 28... hxg3 {[%clk 0:00:25.5]} 29. fxg3 {[%clk 0:00:11.4]}
29... Nf3+ {[%clk 0:00:25.1]} 30. Rxf3 {[%clk 0:00:11.1]} 30... exf3 {[%clk
0:00:25.1]} 31. Rxe7+ {[%clk 0:00:11.8]} 31... Rxe7 {[%clk 0:00:24.9]} 32. fxe7
{[%clk 0:00:12.3]} 32... Ke6 {[%clk 0:00:25.4]} 33. e8=Q+ {[%clk 0:00:11.3]} 1-0

[Event "*** SCC Grand Prix: Titled Tuesday Blitz"]
[Site "Chess.com"]
[Date "2020.07.07"]
[Round "3"]
[White "stanyga"]
[Black "Msb2"]
[Result "0-1"]
[WhiteElo "2631"]
[BlackElo "2857"]
[TimeControl "180+1"]
[EndTime "10:29:03 PDT"]
[Termination "Msb2 won by checkmate"]

1. d4 {[%clk 0:03:00]} 1... d5 {[%clk 0:03:00.2]} 2. c4 {[%clk 0:02:58.9]} 2...
c6 {[%clk 0:03:00.7]} 3. Nf3 {[%clk 0:02:58.1]} 3... Nf6 {[%clk 0:03:00.9]} 4.
Nc3 {[%clk 0:02:58.1]} 4... dxc4 {[%clk 0:03:01.5]} 5. a4 {[%clk 0:02:56.4]}
5... Bf5 {[%clk 0:03:01.7]} 6. e3 {[%clk 0:02:54.3]} 6... e6 {[%clk 0:03:01.7]}
7. Bxc4 {[%clk 0:02:53.5]} 7... Bb4 {[%clk 0:03:02.4]} 8. O-O {[%clk 0:02:52]}
8... O-O {[%clk 0:03:03]} 9. Bd2 {[%clk 0:02:41.9]} 9... a5 {[%clk 0:02:49.7]}
10. h3 {[%clk 0:02:36.4]} 10... h6 {[%clk 0:02:44.4]} 11. Re1 {[%clk 0:02:25.5]}
11... Bh7 {[%clk 0:02:44.3]} 12. Bb3 {[%clk 0:02:09.4]} 12... Nbd7 {[%clk
0:02:42.2]} 13. Bc2 {[%clk 0:02:08.3]} 13... Bxc2 {[%clk 0:02:26.8]} 14. Qxc2
{[%clk 0:02:07.5]} 14... c5 {[%clk 0:02:27.7]} 15. Nb5 {[%clk 0:02:00]} 15...
Bxd2 {[%clk 0:02:03.3]} 16. Qxd2 {[%clk 0:01:59.5]} 16... Qe7 {[%clk 0:01:57.7]}
17. Rac1 {[%clk 0:01:52.1]} 17... Rfc8 {[%clk 0:01:55.6]} 18. Ne5 {[%clk
0:01:46.4]} 18... Nxe5 {[%clk 0:01:35.9]} 19. dxe5 {[%clk 0:01:43.8]} 19... Nd5
{[%clk 0:01:36.8]} 20. e4 {[%clk 0:01:25.1]} 20... Nb4 {[%clk 0:01:29.4]} 21.
Re3 {[%clk 0:01:24.2]} 21... Qg5 {[%clk 0:01:09.8]} 22. Nd6 {[%clk 0:01:03.6]}
22... Rc7 {[%clk 0:01:09]} 23. Nc4 {[%clk 0:01:02.4]} 23... Rd8 {[%clk
0:01:04.4]} 24. Qe2 {[%clk 0:00:59.2]} 24... Rcd7 {[%clk 0:01:02.8]} 25. g3
{[%clk 0:00:33.7]} 25... Rd3 {[%clk 0:00:33.8]} 26. f4 {[%clk 0:00:31.1]} 26...
Rxe3 {[%clk 0:00:26.9]} 27. Qxe3 {[%clk 0:00:29.2]} 27... Qh5 {[%clk 0:00:27.5]}
28. g4 {[%clk 0:00:27.1]} 28... Qh4 {[%clk 0:00:27.6]} 29. Nd6 {[%clk
0:00:26.3]} 29... b6 {[%clk 0:00:28]} 30. Kg2 {[%clk 0:00:21.4]} 30... Nc6
{[%clk 0:00:28.2]} 31. Qg3 {[%clk 0:00:19.5]} 31... Qe7 {[%clk 0:00:27.8]} 32.
h4 {[%clk 0:00:18]} 32... f6 {[%clk 0:00:25.7]} 33. g5 {[%clk 0:00:15.8]} 33...
fxe5 {[%clk 0:00:25.4]} 34. fxe5 {[%clk 0:00:13.9]} 34... Nxe5 {[%clk
0:00:25.1]} 35. gxh6 {[%clk 0:00:11.1]} 35... Rxd6 {[%clk 0:00:23.3]} 36. Qxe5
{[%clk 0:00:11.1]} 36... Rd2+ {[%clk 0:00:22.7]} 37. Kf3 {[%clk 0:00:11.4]}
37... Qf7+ {[%clk 0:00:22]} 38. Ke3 {[%clk 0:00:10.9]} 38... Qf2# {[%clk
0:00:22]} 0-1

[Event "*** SCC Grand Prix: Titled Tuesday Blitz"]
[Site "Chess.com"]
[Date "2020.07.07"]
[Round "3"]
[White "Oleksandr_Bortnyk"]
[Black "PavelShkapenko"]
[Result "1-0"]
[WhiteElo "2920"]
[BlackElo "2600"]
[TimeControl "180+1"]
[EndTime "10:29:05 PDT"]
[Termination "Oleksandr_Bortnyk won by resignation"]

1. e4 {[%clk 0:03:00.9]} 1... c5 {[%clk 0:02:59.4]} 2. c3 {[%clk 0:03:00.2]}
2... d5 {[%clk 0:02:49.7]} 3. exd5 {[%clk 0:03:00.2]} 3... Qxd5 {[%clk 0:02:50]}
4. d4 {[%clk 0:03:01.1]} 4... Nc6 {[%clk 0:02:50]} 5. Nf3 {[%clk 0:03:00.5]}
5... Bf5 {[%clk 0:02:50]} 6. Be3 {[%clk 0:03:00.9]} 6... cxd4 {[%clk 0:02:49.5]}
7. Na3 {[%clk 0:02:51.9]} 7... e6 {[%clk 0:02:38.7]} 8. Nb5 {[%clk 0:02:50.1]}
8... Rc8 {[%clk 0:02:14.5]} 9. Nfxd4 {[%clk 0:02:46.6]} 9... Nge7 {[%clk
0:02:01.1]} 10. Nxf5 {[%clk 0:02:28.4]} 10... Qxd1+ {[%clk 0:01:36.2]} 11. Rxd1
{[%clk 0:02:28.2]} 11... Nxf5 {[%clk 0:01:36.8]} 12. Bxa7 {[%clk 0:02:26.4]}
12... Nxa7 {[%clk 0:01:20.9]} 13. Nxa7 {[%clk 0:02:27.3]} 13... Ra8 {[%clk
0:01:21.1]} 14. Bb5+ {[%clk 0:02:01.8]} 14... Ke7 {[%clk 0:01:20.9]} 15. Rd7+
{[%clk 0:02:02.7]} 15... Kf6 {[%clk 0:01:21.4]} 16. Rxb7 {[%clk 0:02:03.6]}
16... Bc5 {[%clk 0:01:09.9]} 17. Nc6 {[%clk 0:02:02.9]} 17... Nd6 {[%clk
0:01:09.5]} 18. Rd7 {[%clk 0:01:44.2]} 18... Nxb5 {[%clk 0:01:03.9]} 19. f4
{[%clk 0:01:32.5]} 19... Rxa2 {[%clk 0:00:49.6]} 20. Ne5 {[%clk 0:01:31.9]}
20... Kf5 {[%clk 0:00:50]} 21. Ke2 {[%clk 0:01:21.1]} 21... Ke4 {[%clk
0:00:41.8]} 22. Nd3 {[%clk 0:01:06.7]} 22... Nxc3+ {[%clk 0:00:31]} 23. Kd2
{[%clk 0:01:06.9]} 23... Na4 {[%clk 0:00:31.5]} 24. Re1+ {[%clk 0:01:05.1]}
24... Kf5 {[%clk 0:00:28.9]} 25. Rxf7+ {[%clk 0:00:53.1]} 25... Kg6 {[%clk
0:00:27.6]} 26. Rc7 {[%clk 0:00:34.3]} 26... Bd4 {[%clk 0:00:23.1]} 27. Rxe6+
{[%clk 0:00:33.7]} 27... Bf6 {[%clk 0:00:23.3]} 28. g4 {[%clk 0:00:33.4]} 28...
h6 {[%clk 0:00:21.3]} 29. Ne5+ {[%clk 0:00:32.8]} 29... Kh7 {[%clk 0:00:21.1]}
30. Rxf6 {[%clk 0:00:33.1]} 30... Rxb2+ {[%clk 0:00:20.3]} 31. Ke3 {[%clk
0:00:32.6]} 31... Rxh2 {[%clk 0:00:17.8]} 32. Rff7 {[%clk 0:00:22.8]} 32... Rg8
{[%clk 0:00:17.5]} 33. Nd7 {[%clk 0:00:22.7]} 33... Kg6 {[%clk 0:00:14.8]} 34.
Nf8+ {[%clk 0:00:19.7]} 34... Rxf8 {[%clk 0:00:15.1]} 35. Rxf8 {[%clk
0:00:20.6]} 35... Nb6 {[%clk 0:00:15]} 36. f5+ {[%clk 0:00:18.8]} 36... Kh7
{[%clk 0:00:14.9]} 37. Rd8 {[%clk 0:00:19]} 37... Rh3+ {[%clk 0:00:12.8]} 38.
Ke4 {[%clk 0:00:18.9]} 38... Rb3 {[%clk 0:00:11.9]} 39. f6 {[%clk 0:00:17.2]}
39... Rb4+ {[%clk 0:00:12.1]} 40. Kf3 {[%clk 0:00:17.7]} 40... Rb3+ {[%clk
0:00:12]} 41. Ke2 {[%clk 0:00:18.2]} 1-0

[Event "*** SCC Grand Prix: Titled Tuesday Blitz"]
[Site "Chess.com"]
[Date "2020.07.07"]
[Round "3"]
[White "kleopl"]
[Black "ShapkinAnatoliy"]
[Result "0-1"]
[WhiteElo "2400"]
[BlackElo "2594"]
[TimeControl "180+1"]
[EndTime "10:29:06 PDT"]
[Termination "ShapkinAnatoliy won by resignation"]

1. c4 {[%clk 0:03:00.9]} 1... c5 {[%clk 0:02:58.7]} 2. Nf3 {[%clk 0:03:00.3]}
2... Nc6 {[%clk 0:02:57.9]} 3. Nc3 {[%clk 0:02:59.2]} 3... Nf6 {[%clk
0:02:57.9]} 4. g3 {[%clk 0:02:59.2]} 4... g6 {[%clk 0:02:57.6]} 5. d4 {[%clk
0:02:58.6]} 5... cxd4 {[%clk 0:02:57.3]} 6. Nxd4 {[%clk 0:02:59.5]} 6... Bg7
{[%clk 0:02:56.4]} 7. Bg2 {[%clk 0:02:59.8]} 7... O-O {[%clk 0:02:56.2]} 8. O-O
{[%clk 0:02:59.8]} 8... Qa5 {[%clk 0:02:55.9]} 9. Ncb5 {[%clk 0:02:49.3]} 9...
a6 {[%clk 0:02:54.8]} 10. Nc3 {[%clk 0:02:47]} 10... d6 {[%clk 0:02:51.5]} 11.
Nxc6 {[%clk 0:02:45.9]} 11... bxc6 {[%clk 0:02:50.9]} 12. Bxc6 {[%clk
0:02:46.8]} 12... Rb8 {[%clk 0:02:51.1]} 13. Bg2 {[%clk 0:02:45]} 13... Be6
{[%clk 0:02:43.7]} 14. Nd5 {[%clk 0:02:40.5]} 14... Bxd5 {[%clk 0:02:42.1]} 15.
cxd5 {[%clk 0:02:37.7]} 15... Nd7 {[%clk 0:02:41.3]} 16. Bg5 {[%clk 0:01:25.2]}
16... Rfe8 {[%clk 0:02:26.8]} 17. Bh3 {[%clk 0:01:24.1]} 17... Nc5 {[%clk
0:02:19.2]} 18. Rb1 {[%clk 0:01:19.1]} 18... Qxa2 {[%clk 0:02:07.8]} 19. b4
{[%clk 0:01:16.9]} 19... Ne4 {[%clk 0:02:06.8]} 20. Qc1 {[%clk 0:00:56.2]} 20...
Nc3 {[%clk 0:01:59.5]} 21. Rb2 {[%clk 0:00:55.9]} 21... Nxe2+ {[%clk 0:01:54.4]}
22. Rxe2 {[%clk 0:00:55.6]} 22... Qxe2 {[%clk 0:01:54.3]} 23. Re1 {[%clk
0:00:48.8]} 23... Qb5 {[%clk 0:01:34.9]} 24. Bxe7 {[%clk 0:00:40.5]} 24... Bf8
{[%clk 0:01:08.3]} 25. Bxf8 {[%clk 0:00:26.7]} 25... Rxe1+ {[%clk 0:01:09.2]}
26. Qxe1 {[%clk 0:00:26.1]} 26... Rxf8 {[%clk 0:01:09.6]} 27. Qe4 {[%clk
0:00:20.4]} 27... Rb8 {[%clk 0:01:05.6]} 28. Bd7 {[%clk 0:00:19.1]} 28... Qxb4
{[%clk 0:01:04.1]} 29. Qe7 {[%clk 0:00:19.3]} 29... a5 {[%clk 0:00:48.8]} 30.
Be8 {[%clk 0:00:19.3]} 30... Qb1+ {[%clk 0:00:43.2]} 31. Kg2 {[%clk 0:00:19.5]}
31... Qf5 {[%clk 0:00:43.5]} 32. Bc6 {[%clk 0:00:19.6]} 32... Qe5 {[%clk
0:00:38.2]} 33. Qa7 {[%clk 0:00:19.6]} 33... Qe4+ {[%clk 0:00:37.8]} 34. Kh3
{[%clk 0:00:19.9]} 34... Qb4 {[%clk 0:00:30.1]} 35. Qc7 {[%clk 0:00:17.4]} 35...
Rf8 {[%clk 0:00:23.4]} 36. Qa7 {[%clk 0:00:16.6]} 36... Qc5 {[%clk 0:00:20.5]}
37. Qxc5 {[%clk 0:00:14]} 37... dxc5 {[%clk 0:00:21.4]} 38. d6 {[%clk
0:00:14.4]} 38... Rd8 {[%clk 0:00:20.9]} 39. d7 {[%clk 0:00:14.6]} 39... c4
{[%clk 0:00:21.4]} 40. Kg2 {[%clk 0:00:14.1]} 40... c3 {[%clk 0:00:21.5]} 41.
Ba4 {[%clk 0:00:14.5]} 41... Rxd7 {[%clk 0:00:20.7]} 0-1